[Event "36th Indian-ch U13 Girls 2023"]
[Site "Secunderabad"]
[Date "2023.12.04"]
[Round "1.8"]
[White "Shreya G Hipparagi"]
[Black "Lakshanya Barla"]
[Result "1-0"]
[ECO "C28"]
[WhiteElo "1576"]
[BlackElo "1104"]
[Annotator "NA RC"]
[PlyCount "101"]
[EventDate "2023.12.04"]
[EventType "swiss"]
[EventCountry "IND"]
[SourceTitle "playchess.com"]
[Source "ChessBase"]
[SourceQuality "1"]
[TimeControl "5400+30"]

1. e4 {[%emt 0:00:03]} e5 {[%emt 0:00:04]} 2. Nf3 {[%emt 0:00:04]} Nc6 {[%emt 0:00:07]} 3. Bc4 {[%emt 0:00:05]} Nf6 {[%emt 0:00:07]} 4. d3 {[%emt 0:00:07]} d5 {[%emt 0:00:37]} 5. exd5 {[%emt 0:00:21]} Nxd5 {[%emt 1:32:05]} 6. Nc3 {[%emt 0:00:18]} Bb4 {[%emt 0:00:00]} 7. Bd2 {[%emt 0:00:14]} Nxc3 {[%emt 0:00:00]} 8. bxc3 {[%emt 0:00:16]} Bc5 {[%emt 0:00:00]} 9. Ng5 {[%emt 0:04:42]} Qf6 {[%emt 0:00:00]} 10. O-O {[%emt 0:02:20]} O-O {[%emt 0:00:00]} 11. Ne4 {[%emt 0:00:35]} Qe7 {[%emt 0:00:00]} 12. Bg5 {[%emt 0:00:10]} Qd7 {[%emt 0:00:00]} 13. Nxc5 {[%emt 0:01:49]} Qf5 {[%emt 0:00:00]} 14. Ne4 {[%emt 0:00:43]} Be6 {[%emt 0:00:00]} 15. Bxe6 {[%emt 0:00:18]} fxe6 {[%emt 0:00:00]} 16. Be3 {[%emt 0:00:34]} Rad8 {[%emt 0:00:00]} 17. Qe2 {[%emt 0:01:10]} Qg6 {[%emt 0:00:00]} 18. f4 {[%emt 0:00:49]} exf4 {[%emt 0:00:00]} 19. Rxf4 {[%emt 0:00:10]} e5 {[%emt 0:00:00]} 20. Rxf8+ {[%emt 0:00:32]} Rxf8 {[%emt 0:00:00]} 21. Rf1 {[%emt 0:00:06]} Rxf1+ {[%emt 0:00:00]} 22. Qxf1 {[%emt 0:00:06]} Ne7 {[%emt 0:00:00]} 23. Bc5 {[%emt 0:01:18]} Qe8 {[%emt 0:00:00]} 24. Bxe7 {[%emt 0:00:32]} Qxe7 {[%emt 0:00:00]} 25. Qf5 {[%emt 0:00:10]} a6 {[%emt 0:00:00]} 26. Qc8+ {[%emt 0:00:26]} Kf7 {[%emt 0:00:00]} 27. Qxb7 {[%emt 0:00:12]} h6 {[%emt 0:00:00]} 28. Qd5+ {[%emt 0:00:26]} Kf8 {[%emt 0:00:00]} 29. Nc5 {[%emt 0:00:15]} g5 {[%emt 0:00:00]} 30. Nd7+ {[%emt 0:00:12]} Kg7 {[%emt 0:00:00]} 31. Qxe5+ {[%emt 0:00:07]} Qxe5 {[%emt 0:00:00]} 32. Nxe5 {[%emt 0:00:05]} Kf6 {[%emt 0:00:00]} 33. d4 {[%emt 0:00:06]} Ke6 {[%emt 0:00:00]} 34. Kf2 {[%emt 0:00:10]} a5 {[%emt 0:00:00]} 35. a4 {[%emt 0:00:06]} Kf6 {[%emt 0:00:00]} 36. Nc6 {[%emt 0:00:09]} Ke6 {[%emt 0:00:00]} 37. Nxa5 {[%emt 0:00:06]} Kd5 {[%emt 0:00:00]} 38. Ke3 {[%emt 0:00:07]} c6 {[%emt 0:00:00]} 39. c4+ {[%emt 0:00:12]} Kd6 {[%emt 0:00:00]} 40. Nxc6 {[%emt 0:00:11]} Kxc6 {[%emt 0:00:00]} 41. d5+ {[%emt 0:00:04]} Kd6 {[%emt 0:00:00]} 42. a5 {[%emt 0:00:12]} Kc7 {[%emt 0:00:00]} 43. a6 {[%emt 0:00:20]} Kb8 {[%emt 0:00:00]} 44. d6 {[%emt 0:00:24]} Kc8 {[%emt 0:00:00]} 45. a7 {[%emt 0:00:05]} Kb7 {[%emt 0:00:00]} 46. d7 {[%emt 0:00:04]} Kxa7 {[%emt 0:00:00]} 47. d8=Q {[%emt 0:00:10]} h5 {[%emt 0:00:00]} 48. c5 {[%emt 0:00:26]} h4 {[%emt 0:00:00]} 49. Qb6+ {[%emt 0:00:08]} Ka8 {[%emt 0:00:00]} 50. c6 {[%emt 0:00:15]} g4 {[%emt 0:00:00]} 51. Qb7# {[%emt 0:00:09]} 1-0

[Event "36th Indian-ch U13 Girls 2023"]
[Site "Secunderabad"]
[Date "2023.12.04"]
[Round "1.9"]
[White "Sahasra Samudrala"]
[Black "Sherali Pattnaik"]
[Result "0-1"]
[ECO "C01"]
[WhiteElo "1102"]
[BlackElo "1575"]
[Annotator "NA RC"]
[PlyCount "100"]
[EventDate "2023.12.04"]
[EventType "swiss"]
[EventCountry "IND"]
[SourceTitle "playchess.com"]
[Source "ChessBase"]
[SourceQuality "1"]
[TimeControl "5400+30"]

1. e4 {[%emt 0:00:01]} e6 {[%emt 0:00:50]} 2. d4 {[%emt 0:00:06]} d5 {[%emt 0:00:30]} 3. exd5 {[%emt 0:00:42]} exd5 {[%emt 0:00:05]} 4. Nf3 {[%emt 0:00:33]} Bd6 {[%emt 0:00:11]} 5. Bd3 {[%emt 0:00:21]} Ne7 {[%emt 0:00:18]} 6. Be3 {[%emt 0:00:36]} c6 {[%emt 0:00:36]} 7. c3 {[%emt 0:00:16]} Nd7 {[%emt 0:00:43]} 8. Nbd2 {[%emt 0:00:51]} h6 {[%emt 0:01:39]} 9. h3 {[%emt 0:00:16]} Nf6 {[%emt 0:01:28]} 10. Qc2 {[%emt 0:02:05]} Be6 {[%emt 1:29:10]} 11. a3 {[%emt 0:03:40]} Qc7 {[%emt 0:00:00]} 12. Nb3 {[%emt 0:01:51]} b6 {[%emt 0:00:00]} 13. Rc1 {[%emt 0:09:01]} Nh5 {[%emt 0:00:00]} 14. Nh4 {[%emt 0:04:59]} Nf4 {[%emt 0:00:00]} 15. Bxf4 {[%emt 0:00:51]} Bxf4 {[%emt 0:00:00]} 16. Rd1 {[%emt 0:00:45]} O-O {[%emt 0:00:00]} 17. Nc1 {[%emt 0:10:33]} Rfe8 {[%emt 0:00:00]} 18. Ne2 {[%emt 0:01:57]} Bd6 {[%emt 0:00:00]} 19. Nf5 {[%emt 0:01:19]} Nxf5 {[%emt 0:00:00]} 20. Bxf5 {[%emt 0:00:13]} Bxf5 {[%emt 0:00:00]} 21. Qxf5 {[%emt 0:00:08]} Re6 {[%emt 0:00:00]} 22. Qd3 {[%emt 0:09:11]} Rae8 {[%emt 0:00:00]} 23. Rd2 {[%emt 0:01:01]} Qe7 {[%emt 0:00:00]} 24. Kd1 {[%emt 0:02:44]} Qg5 {[%emt 0:00:00]} 25. g3 {[%emt 0:03:22]} Qf6 {[%emt 0:00:00]} 26. Rf1 {[%emt 0:04:14]} Re3 {[%emt 0:00:00]} 27. fxe3 {[%emt 0:06:03]} Qxf1+ {[%emt 0:00:00]} 28. Kc2 {[%emt 0:00:16]} Qxh3 {[%emt 0:00:00]} 29. Qa6 {[%emt 0:11:48]} Rxe3 {[%emt 0:09:30]} 30. Qxa7 {[%emt 0:00:27]} Qf5+ {[%emt 0:00:00]} 31. Kb3 {[%emt 0:00:43]} Re8 {[%emt 0:00:00]} 32. Ka2 {[%emt 0:06:10]} Qg4 {[%emt 0:00:00]} 33. Nc1 {[%emt 0:02:15]} Bxg3 {[%emt 0:00:00]} 34. Qxb6 {[%emt 0:00:53]} Bf4 {[%emt 0:00:00]} 35. Qxc6 {[%emt 0:05:24]} Rc8 {[%emt 0:00:00]} 36. Qxd5 {[%emt 0:00:48]} Bxd2 {[%emt 0:00:00]} 37. Nb3 {[%emt 0:00:13]} Bf4 {[%emt 0:00:00]} 38. a4 {[%emt 0:00:28]} Rb8 {[%emt 0:00:00]} 39. a5 {[%emt 0:00:33]} Qe6 {[%emt 0:00:00]} 40. Qxe6 {[%emt 0:00:17]} fxe6 {[%emt 0:00:00]} 41. a6 {[%emt 0:00:10]} h5 {[%emt 0:00:00]} 42. Nc5 {[%emt 0:00:08]} h4 {[%emt 0:00:00]} 43. Ne4 {[%emt 0:01:21]} Ra8 {[%emt 0:00:00]} 44. b4 {[%emt 0:00:46]} Rxa6+ {[%emt 0:00:00]} 45. Kb3 {[%emt 0:00:05]} h3 {[%emt 0:00:00]} 46. Nf2 {[%emt 0:00:05]} h2 {[%emt 0:00:00]} 47. Nh1 {[%emt 0:00:03]} Ra1 {[%emt 0:00:00]} 48. b5 {[%emt 0:00:46]} Rxh1 {[%emt 0:00:00]} 49. b6 {[%emt 0:00:02]} Rb1+ {[%emt 0:00:00]} 50. Kc4 {[%emt 0:00:07]} h1=Q {[%emt 0:00:00]} 0-1

[Event "36th Indian-ch U13 Girls 2023"]
[Site "Secunderabad"]
[Date "2023.12.04"]
[Round "1.10"]
[White "Shriyana S Mallya"]
[Black "Anvita Sathi"]
[Result "1-0"]
[ECO "C45"]
[WhiteElo "1561"]
[BlackElo "1101"]
[Annotator "NA RC"]
[PlyCount "89"]
[EventDate "2023.12.04"]
[EventType "swiss"]
[EventCountry "IND"]
[SourceTitle "playchess.com"]
[Source "ChessBase"]
[SourceQuality "1"]
[TimeControl "5400+30"]

1. e4 {[%emt 0:00:04]} e5 {[%emt 0:00:14]} 2. Nf3 {[%emt 0:00:06]} Nc6 {[%emt 0:00:08]} 3. d4 {[%emt 0:00:04]} exd4 {[%emt 0:00:06]} 4. Nxd4 {[%emt 0:00:05]} Qf6 {[%emt 0:00:08]} 5. Nf3 {[%emt 0:00:10]} Bc5 {[%emt 0:00:55]} 6. c3 {[%emt 0:07:24]} h6 {[%emt 0:06:12]} 7. Qe2 {[%emt 0:05:23]} d6 {[%emt 0:02:24]} 8. Be3 {[%emt 0:01:04]} Bxe3 {[%emt 0:03:46]} 9. Qxe3 {[%emt 0:00:12]} Be6 {[%emt 0:00:29]} 10. Bb5 {[%emt 1:20:58]} Nge7 {[%emt 0:07:09]} 11. Nd4 {[%emt 0:00:00]} Bd7 {[%emt 0:00:52]} 12. Nd2 {[%emt 0:00:00]} O-O-O {[%emt 0:01:55]} 13. Nxc6 {[%emt 0:00:00]} Bxc6 {[%emt 0:00:46]} 14. Be2 {[%emt 0:00:00]} Kb8 {[%emt 0:01:49]} 15. b4 {[%emt 0:00:00]} Rhe8 {[%emt 0:06:37]} 16. b5 {[%emt 0:00:00]} Bd7 {[%emt 0:05:49]} 17. Qg3 {[%emt 0:00:00]} Nd5 {[%emt 0:08:31]} 18. exd5 {[%emt 0:00:00]} Bxb5 {[%emt 0:01:37]} 19. O-O {[%emt 0:00:00]} Rxe2 {[%emt 0:04:13]} 20. a4 {[%emt 0:00:00]} Rxd2 {[%emt 0:05:54]} 21. axb5 {[%emt 0:00:00]} Qg5 {[%emt 0:07:46]} 22. Qf3 {[%emt 0:00:00]} Qxd5 {[%emt 0:01:43]} 23. Qe3 {[%emt 0:00:00]} b6 {[%emt 0:00:33]} 24. c4 {[%emt 0:00:00]} Qd4 {[%emt 0:04:47]} 25. Qa3 {[%emt 0:00:00]} Kc8 {[%emt 0:03:02]} 26. Qxa7 {[%emt 0:00:00]} Kd7 {[%emt 0:00:49]} 27. Rac1 {[%emt 0:00:00]} Qe4 {[%emt 0:03:44]} 28. Qa3 {[%emt 0:00:10]} Ra8 {[%emt 0:00:37]} 29. Qc3 {[%emt 0:01:27]} Raa2 {[%emt 0:06:36]} 30. Rce1 {[%emt 0:03:05]} Qf4 {[%emt 0:07:52]} 31. Qh3+ {[%emt 0:04:38]} Kd8 {[%emt 0:00:14]} 32. Kh1 {[%emt 0:01:04]} Rxf2 {[%emt 0:01:37]} 33. Rg1 {[%emt 0:00:10]} Qxc4 {[%emt 0:02:52]} 34. Qg3 {[%emt 0:00:50]} g5 {[%emt 0:01:11]} 35. Qh3 {[%emt 0:00:03]} Qxb5 {[%emt 0:02:31]} 36. Qxh6 {[%emt 0:00:18]} Rae2 {[%emt 0:00:20]} 37. Ra1 {[%emt 0:00:45]} Ke7 {[%emt 0:00:23]} 38. Rac1 {[%emt 0:00:52]} c5 {[%emt 0:00:19]} 39. Qxg5+ {[%emt 0:00:15]} Ke8 {[%emt 0:00:32]} 40. Ra1 {[%emt 0:00:17]} Ra2 {[%emt 0:00:19]} 41. Qg8+ {[%emt 0:00:19]} Kd7 {[%emt 0:00:16]} 42. Rxa2 {[%emt 0:00:12]} Rxa2 {[%emt 0:00:13]} 43. Qxf7+ {[%emt 0:00:03]} Kc6 {[%emt 0:00:04]} 44. Qe8+ {[%emt 0:00:11]} Kd5 {[%emt 0:00:06]} 45. Qxb5 {[%emt 0:00:07]} 1-0

[Event "36th Indian-ch U13 Girls 2023"]
[Site "Secunderabad"]
[Date "2023.12.05"]
[Round "2.1"]
[White "Kalyani Sirin"]
[Black "Archita Agrawal"]
[Result "1-0"]
[ECO "C02"]
[WhiteElo "1802"]
[BlackElo "1255"]
[Annotator "NA RC"]
[PlyCount "91"]
[EventDate "2023.12.04"]
[EventType "swiss"]
[EventCountry "IND"]
[SourceTitle "playchess.com"]
[Source "ChessBase"]
[SourceQuality "1"]
[TimeControl "5400+30"]

1. e4 {[%emt 0:00:17]} e6 {[%emt 0:00:45]} 2. d4 {[%emt 0:00:10]} d5 {[%emt 0:00:18]} 3. e5 {[%emt 0:00:08]} c5 {[%emt 0:00:20]} 4. c3 {[%emt 0:00:13]} Nc6 {[%emt 0:00:17]} 5. Nf3 {[%emt 0:00:08]} Bd7 {[%emt 0:00:17]} 6. Be2 {[%emt 0:00:10]} f6 {[%emt 0:01:16]} 7. O-O {[%emt 0:00:29]} fxe5 {[%emt 0:00:25]} 8. Nxe5 {[%emt 0:00:09]} Nxe5 {[%emt 0:00:20]} 9. dxe5 {[%emt 0:00:08]} Qc7 {[%emt 0:00:52]} 10. Re1 {[%emt 0:00:23]} Nh6 {[%emt 0:03:28]} 11. Bxh6 {[%emt 0:05:05]} gxh6 {[%emt 0:00:16]} 12. Bh5+ {[%emt 0:00:08]} Kd8 {[%emt 0:00:25]} 13. Qg4 {[%emt 0:05:43]} Qb6 {[%emt 0:01:43]} 14. b3 {[%emt 0:03:41]} Kc7 {[%emt 0:06:37]} 15. Qh4 {[%emt 0:02:01]} Be8 {[%emt 0:04:34]} 16. Qf6 {[%emt 0:06:37]} Bxh5 {[%emt 0:02:26]} 17. Qxh8 {[%emt 0:00:33]} Bg6 {[%emt 0:01:32]} 18. Qf6 {[%emt 0:01:32]} Kd7 {[%emt 0:00:56]} 19. Nd2 {[%emt 0:05:25]} Be7 {[%emt 0:01:07]} 20. Qg7 {[%emt 0:01:03]} h5 {[%emt 0:00:57]} 21. c4 {[%emt 0:03:28]} Rf8 {[%emt 0:02:11]} 22. cxd5 {[%emt 0:04:13]} exd5 {[%emt 0:00:49]} 23. e6+ {[%emt 0:00:58]} Ke8 {[%emt 0:00:36]} 24. Re3 {[%emt 0:07:12]} Qb4 {[%emt 0:03:28]} 25. Rf3 {[%emt 0:02:51]} Qb5 {[%emt 0:06:07]} 26. Re1 {[%emt 0:03:26]} Qc6 {[%emt 0:02:33]} 27. Qe5 {[%emt 0:02:28]} Qd6 {[%emt 0:09:48]} 28. Rxf8+ {[%emt 0:01:01]} Bxf8 {[%emt 0:01:20]} 29. e7 {[%emt 0:00:19]} Qxe5 {[%emt 0:10:20]} 30. exf8=Q+ {[%emt 0:00:25]} Kxf8 {[%emt 0:00:14]} 31. Rxe5 {[%emt 0:00:09]} Bf7 {[%emt 0:08:33]} 32. f4 {[%emt 0:00:29]} a6 {[%emt 0:01:09]} 33. f5 {[%emt 0:00:08]} b5 {[%emt 0:00:27]} 34. Kf2 {[%emt 0:00:08]} Kg7 {[%emt 0:03:40]} 35. Ke3 {[%emt 0:00:50]} Kf6 {[%emt 0:01:34]} 36. Kf4 {[%emt 0:00:02]} a5 {[%emt 0:01:42]} 37. Re1 {[%emt 0:00:48]} c4 {[%emt 0:03:04]} 38. bxc4 {[%emt 0:01:04]} dxc4 {[%emt 0:00:45]} 39. Ne4+ {[%emt 0:00:08]} Kg7 {[%emt 0:00:57]} 40. Nd6 {[%emt 0:00:07]} Kf6 {[%emt 0:01:45]} 41. Nxb5 {[%emt 0:01:00]} Bd5 {[%emt 0:04:34]} 42. Nc7 {[%emt 0:00:07]} Bxg2 {[%emt 0:00:58]} 43. Ne8+ {[%emt 0:00:25]} Kf7 {[%emt 0:00:52]} 44. Nd6+ {[%emt 0:00:03]} Kf8 {[%emt 0:01:57]} 45. f6 {[%emt 0:00:05]} Bc6 {[%emt 0:02:01]} 46. Rb1 {[%emt 0:02:41]} 1-0

[Event "36th Indian-ch U13 Girls 2023"]
[Site "Secunderabad"]
[Date "2023.12.05"]
[Round "2.2"]
[White "Stuti Pradeep"]
[Black "Arshiya Das"]
[Result "0-1"]
[ECO "D00"]
[WhiteElo "1257"]
[BlackElo "1729"]
[Annotator "NA RC"]
[PlyCount "184"]
[EventDate "2023.12.04"]
[EventType "swiss"]
[EventCountry "IND"]
[SourceTitle "playchess.com"]
[Source "ChessBase"]
[SourceQuality "1"]
[TimeControl "5400+30"]

1. d4 {[%emt 0:00:03]} Nf6 {[%emt 0:00:04]} 2. Nc3 {[%emt 0:00:14]} d5 {[%emt 0:00:28]} 3. Bf4 {[%emt 0:00:18]} c6 {[%emt 0:00:50]} 4. e3 {[%emt 0:00:19]} Bf5 {[%emt 0:01:26]} 5. f3 {[%emt 0:00:40]} h6 {[%emt 0:03:09]} 6. g4 {[%emt 0:00:53]} Bg6 {[%emt 0:01:41]} 7. h4 {[%emt 0:00:30]} e6 {[%emt 0:01:07]} 8. Bd3 {[%emt 0:00:18]} Bxd3 {[%emt 0:03:47]} 9. Qxd3 {[%emt 0:00:13]} Bd6 {[%emt 0:02:04]} 10. Nge2 {[%emt 0:00:36]} Bxf4 {[%emt 0:03:22]} 11. Nxf4 {[%emt 0:00:18]} Nbd7 {[%emt 0:00:13]} 12. O-O-O {[%emt 0:13:35]} Qe7 {[%emt 0:08:22]} 13. g5 {[%emt 0:05:49]} Ng8 {[%emt 0:02:33]} 14. gxh6 {[%emt 0:11:35]} Nxh6 {[%emt 0:03:22]} 15. e4 {[%emt 0:07:07]} O-O-O {[%emt 0:03:39]} 16. Nfe2 {[%emt 0:05:40]} Nb6 {[%emt 0:03:59]} 17. Kb1 {[%emt 0:05:14]} Ng8 {[%emt 0:04:49]} 18. exd5 {[%emt 0:03:00]} cxd5 {[%emt 0:04:05]} 19. Nc1 {[%emt 0:04:26]} Nf6 {[%emt 0:04:24]} 20. Nb3 {[%emt 0:02:36]} Nfd7 {[%emt 0:01:51]} 21. Nb5 {[%emt 0:04:19]} Kb8 {[%emt 0:09:17]} 22. Qd2 {[%emt 0:04:17]} a6 {[%emt 0:01:40]} 23. Qh2+ {[%emt 0:01:44]} Ka8 {[%emt 0:00:36]} 24. Nc3 {[%emt 0:01:03]} Rc8 {[%emt 0:00:37]} 25. Rd3 {[%emt 0:06:32]} Rh5 {[%emt 0:04:31]} 26. f4 {[%emt 0:03:39]} Nc4 {[%emt 0:01:55]} 27. Rh3 {[%emt 0:02:30]} Qb4 {[%emt 0:03:19]} 28. Qe2 {[%emt 0:01:42]} g6 {[%emt 0:00:45]} 29. a3 {[%emt 0:01:46]} Qd6 {[%emt 0:01:36]} 30. Qf2 {[%emt 0:01:14]} b5 {[%emt 0:04:32]} 31. Na2 {[%emt 0:02:00]} a5 {[%emt 0:02:06]} 32. Nd2 {[%emt 0:00:31]} Ndb6 {[%emt 0:01:26]} 33. Rb3 {[%emt 0:01:07]} Nxd2+ {[%emt 0:00:29]} 34. Qxd2 {[%emt 0:00:03]} Nc4 {[%emt 0:00:03]} 35. Qf2 {[%emt 0:00:22]} Rb8 {[%emt 0:01:06]} 36. Rf1 {[%emt 0:03:59]} Rhh8 {[%emt 0:00:33]} 37. Qe1 {[%emt 0:00:34]} Qb6 {[%emt 0:02:05]} 38. Qf2 {[%emt 0:02:29]} Qc6 {[%emt 0:01:22]} 39. Qe1 {[%emt 0:00:38]} Qb6 {[%emt 0:01:18]} 40. Qf2 {[%emt 0:00:15]} Qd8 {[%emt 0:00:05]} 41. Rh1 {[%emt 0:00:25]} Qd6 {[%emt 0:00:51]} 42. Rf1 {[%emt 0:00:15]} Rhc8 {[%emt 0:00:33]} 43. Qe1 {[%emt 0:00:32]} Qa6 {[%emt 0:00:39]} 44. Rh1 {[%emt 0:01:01]} Qa7 {[%emt 0:00:31]} 45. Qf2 {[%emt 0:00:12]} Nd6 {[%emt 0:00:30]} 46. Rd1 {[%emt 0:00:52]} Rc4 {[%emt 0:00:50]} 47. Rc3 {[%emt 0:00:29]} Ne4 {[%emt 0:00:08]} 48. Qe1 {[%emt 0:00:13]} Nxc3+ {[%emt 0:00:11]} 49. Nxc3 {[%emt 0:00:07]} b4 {[%emt 0:00:47]} 50. axb4 {[%emt 0:00:23]} Rcxb4 {[%emt 0:00:11]} 51. b3 {[%emt 0:00:47]} Qb6 {[%emt 0:00:17]} 52. Rd3 {[%emt 0:01:18]} Qa6 {[%emt 0:02:18]} 53. Na2 {[%emt 0:00:20]} R4b6 {[%emt 0:00:51]} 54. Rc3 {[%emt 0:00:36]} a4 {[%emt 0:01:19]} 55. b4 {[%emt 0:00:22]} Rc8 {[%emt 0:05:17]} 56. Rxc8+ {[%emt 0:00:22]} Qxc8 {[%emt 0:00:03]} 57. Qc1 {[%emt 0:00:19]} Qc4 {[%emt 0:00:27]} 58. Qa3 {[%emt 0:00:22]} Ra6 {[%emt 0:00:30]} 59. Nc3 {[%emt 0:01:12]} Ra7 {[%emt 0:01:55]} 60. b5 {[%emt 0:01:26]} Rb7 {[%emt 0:01:15]} 61. Kc1 {[%emt 0:01:46]} Qxd4 {[%emt 0:01:06]} 62. Nxa4 {[%emt 0:00:58]} Qxf4+ {[%emt 0:00:10]} 63. Kb1 {[%emt 0:00:24]} Rxb5+ {[%emt 0:00:19]} 64. Nb2+ {[%emt 0:00:16]} Kb7 {[%emt 0:00:02]} 65. Qe7+ {[%emt 0:00:33]} Qc7 {[%emt 0:00:01]} 66. Qa3 {[%emt 0:00:18]} Qc5 {[%emt 0:00:26]} 67. Qxc5 {[%emt 0:00:41]} Rxc5 {[%emt 0:00:02]} 68. Nd3 {[%emt 0:00:09]} Rc4 {[%emt 0:00:19]} 69. Ne5 {[%emt 0:00:10]} Rf4 {[%emt 0:00:11]} 70. Kc1 {[%emt 0:00:09]} Kc7 {[%emt 0:00:03]} 71. Kd2 {[%emt 0:00:16]} Kd6 {[%emt 0:00:02]} 72. Nd3 {[%emt 0:00:13]} Rxh4 {[%emt 0:00:02]} 73. Ke3 {[%emt 0:00:13]} Rh3+ {[%emt 0:00:04]} 74. Kd2 {[%emt 0:00:09]} Rxd3+ {[%emt 0:00:03]} 75. Kxd3 {[%emt 0:00:07]} Kc5 {[%emt 0:00:05]} 76. c3 {[%emt 0:00:11]} e5 {[%emt 0:00:08]} 77. Ke3 {[%emt 0:00:09]} Kc4 {[%emt 0:00:07]} 78. Kd2 {[%emt 0:00:07]} f5 {[%emt 0:00:02]} 79. Kc2 {[%emt 0:00:13]} g5 {[%emt 0:00:02]} 80. Kd2 {[%emt 0:00:07]} g4 {[%emt 0:00:06]} 81. Ke2 {[%emt 0:00:18]} Kxc3 {[%emt 0:00:04]} 82. Ke3 {[%emt 0:00:06]} d4+ {[%emt 0:00:02]} 83. Ke2 {[%emt 0:00:09]} Kc2 {[%emt 0:00:02]} 84. Kf2 {[%emt 0:00:35]} d3 {[%emt 0:00:05]} 85. Ke3 {[%emt 0:00:05]} d2 {[%emt 0:00:03]} 86. Kf2 {[%emt 0:00:24]} d1=Q {[%emt 0:00:07]} 87. Kg3 {[%emt 0:00:06]} Qh1 {[%emt 0:00:26]} 88. Kf2 {[%emt 0:00:07]} Qf3+ {[%emt 0:00:10]} 89. Kg1 {[%emt 0:00:07]} Qe2 {[%emt 0:00:08]} 90. Kh1 {[%emt 0:00:05]} g3 {[%emt 0:00:01]} 91. Kg1 {[%emt 0:00:15]} f4 {[%emt 0:00:02]} 92. Kh1 {[%emt 0:00:10]} Qh2# {[%emt 0:00:02]} 0-1

[Event "36th Indian-ch U13 Girls 2023"]
[Site "Secunderabad"]
[Date "2023.12.05"]
[Round "2.3"]
[White "Ananya Manisundaram"]
[Black "Gorli Nyna"]
[Result "0-1"]
[ECO "B42"]
[WhiteElo "1250"]
[BlackElo "1652"]
[Annotator "NA RC"]
[PlyCount "72"]
[EventDate "2023.12.04"]
[EventType "swiss"]
[EventCountry "IND"]
[SourceTitle "playchess.com"]
[Source "ChessBase"]
[SourceQuality "1"]
[TimeControl "5400+30"]

1. e4 {[%emt 0:01:23]} c5 {[%emt 0:00:07]} 2. Nf3 {[%emt 0:00:09]} e6 {[%emt 0:00:05]} 3. d4 {[%emt 0:00:07]} cxd4 {[%emt 0:00:04]} 4. Nxd4 {[%emt 0:00:10]} a6 {[%emt 0:00:10]} 5. Bd3 {[%emt 0:00:11]} Nf6 {[%emt 0:00:44]} 6. O-O {[%emt 0:00:30]} Qc7 {[%emt 0:00:19]} 7. Qe2 {[%emt 0:00:14]} d6 {[%emt 0:00:14]} 8. c4 {[%emt 0:00:09]} Be7 {[%emt 0:00:20]} 9. Nc3 {[%emt 0:00:16]} O-O {[%emt 0:01:46]} 10. f4 {[%emt 0:00:56]} e5 {[%emt 0:01:31]} 11. Nf5 {[%emt 0:05:04]} Bxf5 {[%emt 0:08:58]} 12. exf5 {[%emt 0:00:20]} Nc6 {[%emt 0:00:15]} 13. Kh1 {[%emt 0:27:34]} Nd4 {[%emt 0:09:14]} 14. Qf2 {[%emt 0:00:47]} Rfe8 {[%emt 0:16:43]} 15. h3 {[%emt 0:21:10]} Nc6 {[%emt 0:13:02]} 16. a3 {[%emt 0:07:02]} Na5 {[%emt 0:06:50]} 17. g4 {[%emt 0:08:42]} Qc6+ {[%emt 0:03:01]} 18. Kh2 {[%emt 0:01:49]} e4 {[%emt 0:07:00]} 19. Bc2 {[%emt 0:02:17]} Qxc4 {[%emt 0:01:44]} 20. g5 {[%emt 0:03:52]} Nd5 {[%emt 0:00:07]} 21. Bd2 {[%emt 0:06:43]} e3 {[%emt 0:04:08]} 22. Bxe3 {[%emt 0:01:36]} Nxe3 {[%emt 0:02:26]} 23. Qxe3 {[%emt 0:00:50]} Bxg5 {[%emt 0:01:05]} 24. Qg3 {[%emt 0:02:13]} Bf6 {[%emt 0:01:05]} 25. Bd3 {[%emt 0:00:54]} Qd4 {[%emt 0:02:17]} 26. Rae1 {[%emt 0:03:20]} Nb3 {[%emt 0:02:22]} 27. Re4 {[%emt 0:05:02]} Rxe4 {[%emt 0:01:12]} 28. Bxe4 {[%emt 0:00:01]} Nd2 {[%emt 0:04:17]} 29. Re1 {[%emt 0:00:31]} Re8 {[%emt 0:02:09]} 30. Bxb7 {[%emt 0:01:00]} Rxe1 {[%emt 0:00:07]} 31. Qxe1 {[%emt 0:00:01]} Qxf4+ {[%emt 0:00:08]} 32. Kh1 {[%emt 0:00:07]} Be5 {[%emt 0:00:09]} 33. Qe2 {[%emt 0:00:50]} Nf1 {[%emt 0:00:42]} 34. Kg1 {[%emt 0:01:01]} Ng3 {[%emt 0:00:47]} 35. Qf3 {[%emt 0:00:36]} Qd2 {[%emt 0:02:45]} 36. Bxa6 {[%emt 0:00:24]} Bd4+ {[%emt 0:00:07]} 0-1